bitfinex/quotes_BTCUSD_20230403
["timestamp","ask_amount","ask_price","bid_price","bid_amount"]
[1680547521297,0.00259902,28145.0,28144.0,1.79299556]
[1680547521536,0.02310001,28147.0,28146.0,0.3753]
[1680547521737,0.02310001,28147.0,28146.0,0.76258056]
[1680547521961,0.02310001,28147.0,28146.0,1.46258056]
[1680547522192,0.02310001,28147.0,28146.0,1.48088056]
[1680547523054,0.02310001,28147.0,28146.0,1.50888056]
[1680547523729,0.02310001,28147.0,28146.0,2.01483856]
[1680547523960,0.02310001,28147.0,28146.0,2.21483856]
[1680547524436,0.02310001,28147.0,28146.0,1.84440956]
[1680547525153,0.02310001,28147.0,28146.0,1.81640956]
[1680547525386,0.02310001,28147.0,28146.0,1.80888056]
[1680547525610,0.02310001,28147.0,28146.0,1.79111656]
[1680547525858,0.02310001,28147.0,28146.0,1.83688056]
[1680547526083,0.02310001,28147.0,28146.0,1.76311656]
[1680547526303,0.02310001,28147.0,28146.0,1.80936056]
[1680547526585,0.02310001,28147.0,28146.0,1.78124056]
[1680547526852,0.02310001,28147.0,28146.0,1.80924056]
[1680547527651,0.02310001,28147.0,28146.0,1.78124056]
[1680547527964,0.02310001,28147.0,28146.0,1.79111656]
[1680547528367,0.02310001,28147.0,28146.0,1.81640956]
[1680547528374,0.02310001,28147.0,28146.0,1.84440956]
[1680547528545,0.02310001,28147.0,28146.0,1.81640956]
[1680547528761,0.02310001,28147.0,28146.0,1.84440956]
[1680547528973,0.02310001,28147.0,28146.0,1.81640956]
[1680547529382,0.0149128,28147.0,28146.0,1.84440956]
[1680547529599,0.0149128,28147.0,28146.0,1.81640956]
[1680547530700,0.0149128,28147.0,28146.0,1.46311656]
[1680547531004,0.0149128,28147.0,28146.0,0.4216]
[1680547531103,0.0149128,28147.0,28146.0,0.0183]
[1680547531334,0.0149128,28147.0,28146.0,0.0463]
[1680547531563,0.0149128,28147.0,28146.0,0.0183]
[1680547531823,0.0149128,28147.0,28146.0,0.0463]
[1680547532061,0.0149128,28147.0,28146.0,0.0183]
[1680547532295,0.0149128,28147.0,28146.0,0.0243]
[1680547532531,0.0149128,28147.0,28146.0,0.0183]
[1680547532769,0.0149128,28147.0,28146.0,0.0313]
[1680547533223,0.0149128,28147.0,28146.0,0.75860256]
[1680547533452,0.0149128,28147.0,28146.0,0.75956256]
[1680547533679,0.0149128,28147.0,28146.0,0.391852]
[1680547533907,0.0149128,28147.0,28146.0,0.38944]
[1680547534159,0.0149128,28147.0,28146.0,0.3753]
[1680547534371,0.0149128,28147.0,28146.0,0.019]
[1680547535281,0.03221408,28147.0,28146.0,0.019]
[1680547535506,0.1919188,28147.0,28146.0,0.019]
[1680547535752,0.2043528,28147.0,28146.0,0.019]
[1680547536056,0.20448542,28147.0,28146.0,0.019]
[1680547536252,0.19205142,28147.0,28146.0,0.019]
[1680547536480,0.20448542,28147.0,28146.0,0.019]
[1680547536717,0.19205142,28147.0,28146.0,0.019]
[1680547536941,0.79017185,28147.0,28139.0,1.98138]
[1680547537181,0.13337206,28146.0,28139.0,1.9812]
[1680547537409,0.044121,28145.0,28137.0,0.00018]
[1680547537705,0.135,28143.0,28138.0,0.3753]
[1680547537992,0.22298268,28143.0,28138.0,0.3753]
[1680547538273,0.22298268,28143.0,28139.0,0.028]
[1680547538599,0.13513262,28143.0,28138.0,0.3753]
[1680547538787,0.22292268,28143.0,28137.0,0.37536]
[1680547539019,0.22292268,28143.0,28137.0,0.37914]
[1680547539020,0.22298268,28143.0,28137.0,0.37914]
[1680547539243,0.22298268,28143.0,28137.0,0.51719681]
[1680547539703,0.15,28142.0,28137.0,0.3753]
[1680547539921,0.25041868,28142.0,28138.0,0.013]
[1680547540149,0.135,28140.0,28138.0,0.013]
[1680547540372,0.041382,28139.0,28138.0,0.013]
[1680547540595,0.04151462,28139.0,28135.0,2.3565]
[1680547540815,0.48798268,28139.0,28137.0,0.006]
[1680547541073,0.042166,28138.0,28135.0,0.73001056]
[1680547541273,0.00013262,28139.0,28135.0,0.73001056]
[1680547541718,0.00113262,28139.0,28137.0,0.002]
[1680547541934,0.001,28139.0,28137.0,0.002]
[1680547542171,0.00113262,28139.0,28137.0,0.002]
[1680547542666,0.00013262,28139.0,28135.0,0.73001056]
[1680547542898,0.00013262,28139.0,28135.0,0.73101056]
[1680547542899,0.00113262,28139.0,28135.0,0.73101056]
[1680547543117,0.00013262,28139.0,28135.0,0.73001056]
[1680547543343,0.00113262,28139.0,28135.0,0.73001056]
[1680547543587,0.00013262,28139.0,28135.0,0.73001056]
[1680547543819,0.00113262,28139.0,28135.0,0.73001056]
[1680547544299,0.00013262,28139.0,28137.0,0.3753]
[1680547544536,0.00113262,28139.0,28137.0,0.3753]
[1680547545477,0.00013262,28139.0,28137.0,0.3753]
[1680547547133,0.13513262,28140.0,28137.0,0.3753]
[1680547547841,0.13513262,28140.0,28137.0,0.39307]
[1680547548075,0.13513262,28140.0,28138.0,0.790083]
[1680547548302,0.13513262,28140.0,28139.0,0.013951]
[1680547548539,0.135,28140.0,28139.0,0.013951]
[1680547548764,0.135,28140.0,28138.0,0.3753]
[1680547549042,0.135,28140.0,28138.0,0.3813]
[1680547549272,0.135,28140.0,28135.0,0.017771]
[1680547549273,0.135,28140.0,28137.0,0.00018]
[1680547549504,0.10128706,28140.0,28139.0,0.001]
[1680547549719,0.10128706,28140.0,28133.0,0.30018]
[1680547549720,0.190155,28140.0,28133.0,0.30018]
[1680547549947,0.1343,28138.0,28133.0,0.65489056]
[1680547550178,0.08785006,28137.0,28134.0,0.3753]
[1680547550398,0.22208414,28138.0,28134.0,0.37548]
[1680547550618,0.1343667,28138.0,28134.0,0.3753]
[1680547550835,0.14667208,28138.0,28134.0,0.3753]
[1680547551058,0.1343667,28138.0,28134.0,0.3753]
[1680547552960,0.1343667,28138.0,28136.0,0.3753]
[1680547552961,0.00013262,28138.0,28136.0,0.3753]
[1680547553212,0.20013262,28139.0,28137.0,0.014468]
[1680547553446,0.20013262,28139.0,28136.0,0.74778056]
[1680547553447,0.00013262,28139.0,28136.0,0.74778056]
[1680547553665,0.2,28139.0,28137.0,0.3753]
[1680547553886,0.20013262,28139.0,28137.0,0.3753]
[1680547554370,0.00013262,28139.0,28137.0,0.3753]
[1680547554592,1.262e-05,28141.0,28137.0,0.3753]
[1680547554819,0.00013262,28142.0,28137.0,0.3753]
[1680547555036,0.2,28141.0,28137.0,0.51719681]
[1680547555316,0.20013262,28141.0,28138.0,0.3753]
[1680547555751,0.2,28140.0,28138.0,0.3753]
[1680547555989,0.20013262,28140.0,28138.0,0.3753]
[1680547556218,0.20013262,28140.0,28136.0,0.01777]
[1680547556454,0.2,28139.0,28137.0,0.3753]
[1680547556702,0.00013262,28139.0,28137.0,0.3753]
[1680547556951,0.00013262,28140.0,28137.0,0.3753]
[1680547557186,0.00113262,28141.0,28138.0,0.87190737]
[1680547557416,0.001,28141.0,28140.0,0.3753]
[1680547557675,0.08885006,28141.0,28140.0,0.407979]
[1680547557912,0.2,28139.0,28138.0,0.00018]
[1680547558142,0.89527826,28139.0,28138.0,0.001]
[1680547558376,0.89527826,28139.0,28128.0,0.028425]
[1680547558377,0.2,28132.0,28128.0,0.028425]
[1680547558603,0.135,28129.0,28128.0,0.028425]
[1680547558828,0.27992606,28129.0,28128.0,0.028425]
[1680547559300,0.192076,28129.0,28128.0,0.028425]
[1680547559520,0.192076,28129.0,28128.0,0.030425]
[1680547559744,0.192076,28129.0,28128.0,0.028425]
[1680547560698,0.211076,28129.0,28128.0,0.030425]
[1680547560917,0.192076,28129.0,28128.0,0.028425]
[1680547561139,0.211076,28129.0,28128.0,0.030425]
[1680547561370,0.192076,28129.0,28128.0,0.028425]
[1680547561599,0.211076,28129.0,28128.0,0.030425]
[1680547561826,0.211076,28129.0,28128.0,0.028425]
[1680547562071,0.192076,28129.0,28128.0,0.028425]
[1680547562291,0.198634,28129.0,28128.0,0.030425]
[1680547562510,0.179634,28129.0,28128.0,0.028425]
[1680547562731,0.211076,28129.0,28128.0,0.030425]
[1680547562995,0.62326729,28129.0,28128.0,0.030425]
[1680547563222,0.63176729,28129.0,28128.0,0.030425]
[1680547563453,0.95479063,28129.0,28128.0,0.028425]
[1680547563682,0.99165943,28129.0,28128.0,0.030425]
[1680547563906,0.219576,28129.0,28128.0,0.030425]
[1680547564349,0.200576,28129.0,28128.0,0.028425]
[1680547564587,0.200576,28129.0,28128.0,0.030425]
[1680547564588,0.219576,28129.0,28128.0,0.030425]
[1680547564800,0.26503526,28129.0,28128.0,0.028425]
[1680547565021,0.219576,28129.0,28128.0,0.030425]
[1680547565241,0.200576,28129.0,28128.0,0.028425]
[1680547565896,0.219576,28129.0,28128.0,0.030425]
[1680547567054,0.207134,28129.0,28128.0,0.030425]
[1680547567552,0.207134,28129.0,28128.0,0.028425]
[1680547567772,0.226134,28129.0,28128.0,0.030425]
[1680547568002,0.238576,28129.0,28128.0,0.030425]
[1680547569405,0.23870862,28129.0,28128.0,0.030425]
[1680547570009,0.26506788,28129.0,28128.0,0.030425]
[1680547571737,0.23870862,28129.0,28128.0,0.030425]
[1680547572320,0.08276662,28129.0,28128.0,0.17232181]
[1680547572514,0.08276662,28129.0,28128.0,0.4235]
[1680547572515,0.038,28129.0,28128.0,0.4235]
[1680547572705,0.038,28129.0,28128.0,0.420601]
[1680547572998,0.038,28129.0,28128.0,0.438189]
[1680547573246,0.00013262,28134.0,28128.0,0.445189]
[1680547573551,0.001,28129.0,28128.0,0.666051]
[1680547573733,0.012437,28142.0,28133.0,0.5753]
[1680547573734,7.262e-05,28136.0,28133.0,0.5753]
[1680547573924,0.13513262,28142.0,28134.0,0.033366]
[1680547574201,0.13513262,28142.0,28134.0,0.021612]
[1680547574462,0.13513262,28142.0,28135.0,0.2]
[1680547574463,0.135,28142.0,28135.0,0.2]
[1680547574713,0.5003882,28142.0,28136.0,0.14189681]
[1680547575061,0.043297,28141.0,28136.0,0.14189681]
[1680547575635,0.343297,28141.0,28134.0,0.017951]
[1680547575903,0.13132506,28140.0,28134.0,0.14189681]
[1680547576244,0.08798268,28140.0,28133.0,0.393072]
[1680547576492,0.08798268,28140.0,28134.0,0.02]
[1680547576721,0.44099071,28139.0,28135.0,0.01777]
[1680547576947,0.44099071,28139.0,28131.0,0.035547]
[1680547576948,0.050349,28138.0,28131.0,0.035547]
[1680547577208,0.08785006,28137.0,28134.0,0.02]
[1680547577440,0.00013262,28138.0,28134.0,0.02]
[1680547577654,0.00013262,28138.0,28135.0,0.3753]
[1680547577865,0.7456,28145.0,28135.0,0.39307]
[1680547577866,0.00013262,28141.0,28135.0,0.39307]
[1680547578097,0.00013262,28141.0,28135.0,0.3753]
[1680547578299,0.00013262,28141.0,28136.0,0.4]
[1680547579106,0.00013262,28141.0,28136.0,0.406]
[1680547579506,0.00013262,28141.0,28136.0,0.4]
[1680547579880,0.00113262,28141.0,28136.0,0.4]
[1680547580090,0.08798268,28141.0,28134.0,0.3753]
[1680547580319,0.012438,28138.0,28136.0,0.006]
[1680547580544,0.12152333,28140.0,28136.0,0.006]
[1680547580545,0.012438,28139.0,28136.0,0.006]
[1680547580754,0.012438,28139.0,28132.0,0.35855056]
[1680547580980,0.012438,28139.0,28132.0,0.35471056]
[1680547580981,0.08785006,28138.0,28132.0,0.35471056]
[1680547581241,0.10028906,28138.0,28132.0,0.73385056]
[1680547581457,0.10028906,28138.0,28130.0,0.017954]
[1680547581458,0.043611,28137.0,28130.0,0.00018]
[1680547581664,0.043611,28137.0,28136.0,0.013]
[1680547581665,0.080928,28137.0,28136.0,0.013]
[1680547581881,0.080928,28137.0,28129.0,0.381]
[1680547581882,0.01244,28134.0,28129.0,0.381]
[1680547582099,0.08785006,28133.0,28128.0,0.017955]
[1680547582328,0.01257262,28135.0,28127.0,0.393076]
[1680547582615,0.043084,28134.0,28132.0,0.02]
[1680547583040,0.043084,28134.0,28127.0,0.393076]
[1680547583248,0.08785006,28133.0,28129.0,0.3753]
[1680547583459,0.00013262,28134.0,28129.0,0.3753]
[1680547583690,0.1476871,28136.0,28129.0,0.3753]
[1680547583913,0.23553716,28136.0,28129.0,0.51719681]
[1680547584542,0.001,28134.0,28132.0,0.002]
[1680547584762,0.00013262,28135.0,28130.0,0.14189681]
[1680547584981,0.00013262,28135.0,28131.0,0.3753]
[1680547585202,0.0126871,28136.0,28131.0,0.3753]
[1680547585411,0.0126871,28136.0,28131.0,0.51719681]
[1680547585623,0.001,28134.0,28132.0,0.001]
[1680547585833,0.0126871,28136.0,28131.0,0.3753]
[1680547586261,0.001,28135.0,28131.0,0.3763]
[1680547586476,0.0002481,28136.0,28131.0,0.3753]
[1680547586477,0.00011548,28136.0,28131.0,0.3753]
[1680547586905,4.543e-05,28136.0,28131.0,0.3753]
[1680547587148,0.01248443,28136.0,28131.0,0.37548]
[1680547587804,0.001,28134.0,28132.0,0.002]
[1680547587805,4.543e-05,28136.0,28131.0,0.37548]
[1680547588031,4.543e-05,28136.0,28132.0,0.4]
[1680547588480,0.00117805,28136.0,28131.0,0.37522405]
[1680547588714,0.03718384,28136.0,28131.0,0.37522405]
[1680547588946,0.01348443,28136.0,28132.0,0.001]
[1680547589173,0.043763,28135.0,28132.0,0.001]
[1680547589652,0.04712305,28136.0,28132.0,0.001]
[1680547589879,0.14741211,28136.0,28132.0,0.001]
[1680547590111,0.042392,28135.0,28132.0,0.001]
[1680547590357,0.01244,28134.0,28129.0,0.3753]
[1680547590579,0.10029006,28134.0,28129.0,0.73001056]
[1680547591037,0.10029006,28134.0,28132.0,0.001]
[1680547591272,0.045714,28133.0,28128.0,0.00018]
[1680547591523,0.045714,28133.0,28129.0,0.006]
[1680547591524,0.14600506,28133.0,28129.0,0.006]
[1680547591751,0.14600506,28133.0,28126.0,0.08407887]
[1680547591752,0.045561,28132.0,28126.0,0.08407887]
[1680547591978,0.045561,28132.0,28125.0,0.98508]
[1680547591979,0.012442,28131.0,28125.0,0.98508]
[1680547592216,0.08785006,28130.0,28125.0,0.60978]
[1680547592442,0.057492,28129.0,28125.0,0.00018]
[1680547592674,0.10029206,28129.0,28125.0,0.00018]
[1680547592906,0.02495951,28130.0,28125.0,0.00018]
[1680547593136,0.012442,28130.0,28124.0,0.45937887]
[1680547593360,0.08785006,28130.0,28124.0,0.81792943]
[1680547593586,0.08785006,28130.0,28124.0,0.45937887]
[1680547593587,0.10029206,28130.0,28124.0,0.45937887]
[1680547593838,0.10029206,28130.0,28124.0,0.46321887]
[1680547594112,0.08785006,28130.0,28124.0,0.60127568]
[1680547594346,0.012441,28132.0,28124.0,0.61427568]
[1680547594577,0.0085,28131.0,28125.0,0.14189681]
[1680547594806,0.13513262,28133.0,28125.0,0.14207681]
[1680547595033,0.37534543,28136.0,28125.0,0.92523937]
[1680547595034,0.0085,28132.0,28125.0,0.92523937]
[1680547595264,0.35396187,28135.0,28126.0,0.014934]
[1680547595492,0.0085,28134.0,28128.0,0.017775]
[1680547595734,0.00013262,28135.0,28129.0,0.14189681]
[1680547595959,0.0085,28135.0,28129.0,0.14189681]
[1680547596454,0.13517805,28136.0,28129.0,0.15967081]
[1680547596676,0.13517805,28136.0,28129.0,0.14189681]
[1680547596677,0.23546711,28136.0,28129.0,0.14189681]
[1680547597143,0.001,28135.0,28129.0,0.14189681]
[1680547597341,0.10029006,28135.0,28127.0,1.12556656]
[1680547597688,0.08785006,28134.0,28129.0,0.001]
[1680547597910,0.01257262,28135.0,28129.0,0.001]
[1680547598188,0.08785006,28135.0,28129.0,0.14189681]
[1680547598435,0.08785006,28135.0,28130.0,0.51719681]
[1680547598436,0.00013262,28135.0,28130.0,0.51719681]
[1680547598665,4.543e-05,28136.0,28130.0,0.53497081]
[1680547598911,4.543e-05,28136.0,28131.0,0.14189681]
[1680547599128,4.543e-05,28136.0,28132.0,0.393073]
[1680547600014,0.00104543,28136.0,28133.0,0.4]
[1680547600244,0.00104543,28136.0,28132.0,0.394073]
[1680547600498,0.00104543,28136.0,28132.0,0.394072]
[1680547600946,4.543e-05,28136.0,28133.0,0.4]
[1680547601178,4.543e-05,28136.0,28134.0,0.014498]
[1680547601638,0.01256962,28140.0,28133.0,0.015387]
[1680547601639,0.01182309,28140.0,28133.0,0.015387]
[1680547601889,0.020938,28139.0,28133.0,0.14207681]
[1680547602125,0.59629187,28139.0,28133.0,0.00018]
[1680547602366,0.59629187,28139.0,28132.0,0.02]
[1680547602367,0.85907003,28138.0,28132.0,0.00018]
[1680547602606,0.5753,28135.0,28134.0,0.013]
[1680547602842,1.00950045,28135.0,28127.0,0.00018]
[1680547603102,0.742697,28134.0,28126.0,0.00018]
[1680547603344,0.0842,28129.0,28126.0,0.00018]
[1680547603574,0.14458106,28128.0,28126.0,0.00018]
[1680547603794,0.052983,28127.0,28126.0,0.00018]
[1680547604032,0.065426,28127.0,28126.0,0.00018]
[1680547604271,0.065426,28127.0,28126.0,0.001]
[1680547605180,0.065426,28127.0,28125.0,0.00018]
[1680547605437,0.0085,28127.0,28126.0,0.002]
[1680547605689,0.050713,28127.0,28124.0,0.00018]
[1680547605911,0.0105,28127.0,28126.0,0.002]
[1680547606133,0.0105,28127.0,28124.0,0.00018]
[1680547606134,0.0967444,28127.0,28124.0,0.00018]
[1680547606362,0.0690914,28127.0,28126.0,0.002]
[1680547606577,0.1127444,28127.0,28126.0,0.002]
[1680547606809,0.1003014,28127.0,28126.0,0.002]
[1680547607044,0.1127444,28127.0,28126.0,0.002]
[1680547608433,0.1003014,28127.0,28126.0,0.002]
[1680547610705,0.054153,28127.0,28126.0,0.002]
[1680547613136,0.066596,28127.0,28126.0,0.002]
[1680547613563,0.054153,28127.0,28126.0,0.002]
[1680547613814,0.50891349,28127.0,28126.0,0.002]
[1680547614038,1.80910049,28127.0,28126.0,0.002]
[1680547614269,3.72479187,28127.0,28122.0,0.021]
[1680547614508,0.68769,28123.0,28122.0,0.021]
[1680547614741,1.47118162,28123.0,28122.0,0.021]
[1680547614964,1.57190036,28123.0,28122.0,0.021]
[1680547615183,2.0903904,28123.0,28122.0,0.021]
[1680547615404,1.70120036,28123.0,28122.0,0.021]
[1680547615645,1.55041036,28123.0,28122.0,0.022]
[1680547616503,1.52341036,28123.0,28122.0,0.021]
[1680547616718,1.55041036,28123.0,28122.0,0.022]
[1680547616998,1.9185994,28123.0,28120.0,0.021]
[1680547617234,0.5097,28121.0,28120.0,0.021]
[1680547617450,0.94465356,28121.0,28120.0,0.021]
[1680547617676,0.72398436,28121.0,28120.0,0.021]
[1680547617899,0.1956738,28121.0,28120.0,0.021]
[1680547618124,0.177805,28121.0,28120.0,0.021]
[1680547618356,0.082351,28121.0,28120.0,0.022]
[1680547618614,0.055351,28121.0,28120.0,0.021]
[1680547618819,0.1540261,28121.0,28120.0,0.022]
[1680547619044,0.1270261,28121.0,28120.0,0.021]
[1680547619266,0.1625261,28121.0,28120.0,0.022]
[1680547619489,0.1355261,28121.0,28120.0,0.021]
[1680547619711,0.65163666,28121.0,28120.0,0.022]
[1680547620657,0.99993666,28121.0,28120.0,0.021]
[1680547621163,1.02693666,28121.0,28120.0,0.022]
[1680547621395,0.99993666,28121.0,28120.0,0.021]
[1680547621613,1.02693666,28121.0,28120.0,0.022]
[1680547621839,1.00043666,28121.0,28120.0,0.021]
[1680547622078,1.02743666,28121.0,28120.0,0.022]
[1680547622525,0.95576156,28121.0,28120.0,0.022]
[1680547623250,0.58046156,28121.0,28120.0,0.022]
[1680547623956,0.217251,28121.0,28120.0,0.022]
[1680547624248,0.57196156,28121.0,28120.0,0.022]
[1680547625345,0.58064156,28121.0,28120.0,0.022]
[1680547625628,0.58046156,28121.0,28120.0,0.022]
[1680547629186,0.078405,28121.0,28120.0,0.022]
[1680547629788,0.069905,28121.0,28120.0,0.022]
[1680547630268,0.027,28121.0,28120.0,0.022]
[1680547630503,0.1349,28123.0,28120.0,0.021]
[1680547630725,0.040277,28122.0,28120.0,0.021]
[1680547630948,0.1349,28123.0,28120.0,0.021]
[1680547631197,0.027,28121.0,28120.0,0.022]
[1680547631436,0.027,28121.0,28120.0,0.18185681]
[1680547631673,0.027,28121.0,28120.0,0.60299661]
[1680547631902,0.027,28121.0,28120.0,0.95770717]
[1680547632144,0.00495539,28130.0,28124.0,0.3753]
[1680547632375,0.00018,28131.0,28125.0,0.46167975]
[1680547632622,0.3345,28136.0,28126.0,0.4]
[1680547632623,0.00018,28133.0,28126.0,0.4]
[1680547632892,0.00477539,28129.0,28127.0,0.05404675]
[1680547633135,0.00477539,28129.0,28125.0,0.3753]
[1680547633371,0.1466722,28129.0,28124.0,0.4101]
[1680547633607,0.00477539,28127.0,28125.0,0.002]
[1680547633838,0.040989,28126.0,28120.0,0.00402]
[1680547634126,0.14189681,28125.0,28119.0,0.4005]
[1680547634350,0.14189681,28125.0,28119.0,0.40434]
[1680547634571,0.0085,28124.0,28119.0,0.7758]
[1680547634813,0.15039681,28124.0,28119.0,1.14829156]
[1680547635037,0.14189681,28124.0,28120.0,0.013884]
[1680547635276,0.00995539,28127.0,28120.0,0.017724]
[1680547635502,0.0085,28126.0,28121.0,0.05404675]
[1680547635737,0.001,28124.0,28120.0,0.00384]
[1680547635966,0.0085,28126.0,28120.0,0.74865556]
[1680547636196,0.00677539,28127.0,28122.0,0.1337]
[1680547636434,0.00477539,28125.0,28124.0,0.3753]
[1680547636731,0.00018,28129.0,28124.0,0.76222256]
[1680547636964,0.00018,28129.0,28126.0,0.3753]
[1680547637189,0.00018,28131.0,28126.0,0.393077]
[1680547637408,0.00018,28131.0,28127.0,0.05404675]
[1680547637640,0.00012,28131.0,28127.0,0.42934675]
[1680547637877,0.00477539,28132.0,28127.0,0.42934675]
[1680547638119,0.018,28131.0,28128.0,0.014875]
[1680547638352,0.00477539,28132.0,28128.0,0.014875]
[1680547638585,0.001,28131.0,28128.0,0.57792175]
[1680547638821,0.24797601,28139.0,28129.0,0.42406631]
[1680547638822,0.00018,28136.0,28129.0,0.42406631]
[1680547639061,0.00018,28136.0,28135.0,0.35471056]
[1680547639342,0.01034232,28139.0,28137.0,0.19522461]
[1680547639586,0.0149128,28147.0,28141.0,0.3753]
[1680547639821,0.00018,28145.0,28142.0,0.015255]
[1680547640059,0.0149128,28147.0,28144.0,0.1349]
[1680547640290,0.0149128,28147.0,28146.0,0.13420526]
[1680547640530,0.0149128,28147.0,28146.0,0.14885026]
[1680547641007,0.0169128,28147.0,28146.0,0.15735026]
[1680547641230,0.0149128,28147.0,28146.0,0.15735026]
[1680547641468,0.0169128,28147.0,28146.0,0.01667001]
[1680547641698,0.0149128,28147.0,28142.0,0.51]
[1680547641928,0.15880961,28147.0,28146.0,0.015]
[1680547642160,0.0169128,28147.0,28146.0,0.015]
[1680547643302,0.0234128,28147.0,28142.0,0.51384]
[1680547643534,0.0234128,28147.0,28146.0,0.001]
[1680547644206,0.0234128,28147.0,28143.0,0.4]
[1680547644483,0.0199128,28147.0,28146.0,0.001]
[1680547644722,0.0199128,28147.0,28146.0,0.039342]
[1680547644949,0.0199128,28147.0,28146.0,0.173542]
[1680547645405,0.0199128,28147.0,28146.0,0.548842]
[1680547645906,0.0199128,28147.0,28146.0,0.552682]
[1680547646134,0.0149128,28147.0,28146.0,0.551682]
[1680547646412,0.0159128,28147.0,28146.0,0.559682]
[1680547646669,0.0169128,28147.0,28146.0,0.567682]
[1680547646936,0.0169128,28147.0,28146.0,0.92239256]
[1680547648799,0.0149128,28147.0,28146.0,0.90639256]
[1680547649032,0.0169128,28147.0,28146.0,0.92239256]
[1680547649269,0.0169128,28147.0,28146.0,0.97643931]
[1680547649540,0.0169128,28147.0,28146.0,1.07395656]
[1680547649754,0.0169128,28147.0,28146.0,1.37413656]
[1680547650208,0.0149128,28147.0,28146.0,1.35813656]
[1680547650446,0.0169128,28147.0,28146.0,1.37413656]
[1680547650903,0.0169128,28147.0,28146.0,1.42818331]
[1680547651136,0.0169128,28147.0,28146.0,1.23993656]
[1680547651360,0.0169128,28147.0,28146.0,1.63993656]
[1680547651815,0.0149128,28147.0,28146.0,1.47237256]
[1680547652107,0.0149128,28147.0,28146.0,1.51813656]
[1680547652329,0.0149128,28147.0,28146.0,1.62503656]
[1680547652553,0.0149128,28147.0,28146.0,1.65303656]
[1680547652802,0.0149128,28147.0,28146.0,1.62503656]
[1680547653033,0.0149128,28147.0,28146.0,1.65303656]
[1680547653252,0.0149128,28147.0,28146.0,1.62503656]
[1680547653482,0.0149128,28147.0,28146.0,1.65303656]
[1680547657193,0.01294877,28151.0,28149.0,0.19522461]
[1680547657432,0.02310001,28157.0,28154.0,0.57052461]
[1680547657674,0.02310001,28157.0,28156.0,0.509]
[1680547657675,0.00011177,28157.0,28156.0,0.509]
[1680547657917,0.00011177,28157.0,28156.0,1.65902531]
[1680547658141,0.00011177,28157.0,28156.0,1.91011856]
[1680547658377,0.00011177,28157.0,28156.0,2.08768856]
[1680547658844,0.00011177,28157.0,28156.0,2.15137856]
[1680547659089,0.00011177,28157.0,28156.0,2.14667506]
[1680547659315,0.00011177,28157.0,28156.0,2.11098506]
[1680547659550,0.00011177,28157.0,28156.0,1.91011856]
[1680547660056,0.00011177,28157.0,28156.0,1.99119417]
[1680547660294,0.00011177,28157.0,28156.0,1.96319417]
[1680547660520,0.00011177,28157.0,28156.0,1.99119417]
[1680547660765,1.77e-06,28157.0,28156.0,1.96319417]
[1680547660984,1.77e-06,28157.0,28156.0,1.99119417]
[1680547661213,1.77e-06,28157.0,28156.0,2.52688417]
[1680547661442,1.77e-06,28157.0,28156.0,3.00758417]
[1680547661688,1.77e-06,28157.0,28156.0,3.03558417]
[1680547661922,1.77e-06,28157.0,28156.0,3.00758417]
[1680547663068,1.77e-06,28157.0,28156.0,3.70758417]
[1680547663297,1.77e-06,28157.0,28156.0,3.60188417]
[1680547663526,1.77e-06,28157.0,28156.0,3.07388417]
[1680547664074,1.77e-06,28157.0,28156.0,3.11086428]
[1680547664349,1.77e-06,28157.0,28156.0,3.08286428]
[1680547664622,1.77e-06,28157.0,28156.0,3.24576428]
[1680547664993,1.77e-06,28157.0,28156.0,3.26363308]
[1680547665460,1.77e-06,28157.0,28156.0,3.24576428]
[1680547665753,1.77e-06,28157.0,28156.0,3.21776428]
[1680547666281,1.77e-06,28157.0,28156.0,3.24576428]
[1680547666516,1.77e-06,28157.0,28156.0,3.76363308]
[1680547666752,1.77e-06,28157.0,28156.0,3.71776428]
[1680547666997,1.77e-06,28157.0,28156.0,3.74576428]
[1680547667219,1.77e-06,28157.0,28156.0,3.71776428]
[1680547667447,1.77e-06,28157.0,28156.0,3.74576428]
[1680547667713,1.77e-06,28157.0,28156.0,3.71776428]
[1680547667933,1.77e-06,28157.0,28156.0,3.93076428]
[1680547668166,1.77e-06,28157.0,28156.0,4.31293308]
[1680547668386,1.77e-06,28157.0,28156.0,3.08286428]
[1680547668624,1.77e-06,28157.0,28156.0,3.11086428]
[1680547668859,1.77e-06,28157.0,28156.0,3.08286428]
[1680547669093,1.77e-06,28157.0,28156.0,3.11086428]
[1680547669326,1.77e-06,28157.0,28156.0,3.08286428]
[1680547669558,1.77e-06,28157.0,28156.0,3.11086428]
[1680547669780,1.77e-06,28157.0,28156.0,3.08286428]
[1680547670022,1.77e-06,28157.0,28156.0,3.11086428]
[1680547670249,1.77e-06,28157.0,28156.0,3.08286428]
[1680547670485,1.77e-06,28157.0,28156.0,3.11086428]
[1680547671426,1.77e-06,28157.0,28156.0,3.08286428]
[1680547671662,1.77e-06,28157.0,28156.0,3.11086428]
[1680547671904,1.77e-06,28157.0,28156.0,3.08286428]
[1680547672122,0.02287717,28164.0,28158.0,0.2]
[1680547672352,0.02287717,28164.0,28163.0,0.4594]
[1680547672580,0.05115501,28168.0,28163.0,1.18211256]
[1680547672819,0.05115501,28168.0,28165.0,0.4594]
[1680547673048,0.05115501,28168.0,28166.0,0.031798]
[1680547673261,0.05097501,28168.0,28167.0,0.014506]
[1680547673515,0.05097501,28168.0,28167.0,0.76610756]
[1680547674569,0.05115501,28168.0,28167.0,0.76610756]
[1680547674844,0.05097501,28168.0,28167.0,0.81180756]
[1680547675131,0.05097501,28168.0,28167.0,0.78380756]
[1680547675623,0.05097501,28168.0,28167.0,0.81180756]
[1680547675888,0.05097501,28168.0,28167.0,0.76221656]
[1680547676164,0.05097501,28168.0,28167.0,0.80796756]
[1680547676453,0.05097501,28168.0,28167.0,0.78380756]
[1680547676982,0.04597501,28168.0,28167.0,0.78380756]
[1680547677264,0.04597501,28168.0,28167.0,0.81180756]
[1680547677510,0.04597501,28168.0,28167.0,0.81930956]
[1680547677750,0.04597501,28168.0,28167.0,0.84730956]
[1680547677993,0.04597501,28168.0,28167.0,1.11930956]
[1680547678179,0.04597501,28168.0,28167.0,1.14730956]